fUSD/lending_fUSD_20251110
["ID","MTS","AMOUNT","RATE_DAILY","PERIOD"]
[393578659,1762813215399,-150.0,0.00045801,30]
[393578660,1762813215444,-150.0,0.00045801,30]
[393578661,1762813215490,-150.0,0.00045801,30]
[393578662,1762813215535,-150.0,0.00045801,30]
[393578663,1762813215582,-150.0,0.00045801,30]
[393578664,1762813215629,-150.0,0.00045801,30]
[393578665,1762813215675,-150.0,0.00045801,30]
[393578666,1762813215720,-150.0,0.00045801,30]
[393578667,1762813215772,-150.0,0.00045801,30]
[393578668,1762813215819,-150.0,0.00045801,30]
[393578669,1762813215868,-253.63829297,0.00045801,30]
[393578670,1762813215917,-150.0,0.00045801,30]
[393578671,1762813215969,-259.1921076,0.00045801,30]
[393578672,1762813216022,-150.0,0.00045801,30]
[393578673,1762813216071,-164.54227286,0.00045801,30]
[393578674,1762813216122,-206.45551295,0.00045801,30]
[393578675,1762813216175,-1738.39290866,0.000459,120]
[393578676,1762813216227,-1000000.0,0.000459,120]
[393578677,1762813216276,-150.0,0.00045909,30]
[393578678,1762813216325,-150.0,0.00045912,30]
[393578679,1762813216373,-150.0,0.0004596,30]
[393578680,1762813216421,-150.0,0.0004596,30]
[393578681,1762813216470,-150.0,0.00045971,30]
[393578682,1762813216518,-150.0,0.00045971,30]
[393578683,1762813216566,-150.0,0.00045999,120]
[393578684,1762813216613,-200.0,0.00045999,120]
[393578685,1762813216671,-705.98229328,0.00046,120]
[393578686,1762813216721,-204.18920925,0.00046,30]
[393578687,1762813216771,-3213.3798251,0.00046,30]
[393578688,1762813216819,-452.99427994,0.00046,30]
[393578689,1762813216867,-5417.41915244,0.00046,120]
[393578690,1762813216915,-349.32148534,0.00046,90]
[393578691,1762813216965,-200.0,0.00046,120]
[393578692,1762813217018,-1000000.0,0.00046,120]
[393578693,1762813217071,-769641.86623894,0.00046,120]
[393578694,1762813220320,-260.2302264,0.0004351,117]
[393578695,1762813220373,-30358.13376106,0.00046,120]
[393578696,1762813220422,-1000000.0,0.00046,120]
[393578697,1762813220468,-150.0,0.00046,60]
[393578698,1762813220516,-2657.14378134,0.00046,120]
[393578699,1762813220563,-1142.67257679,0.00046,120]
[393578700,1762813220609,-150.0,0.00046018,30]
[393578701,1762813220656,-150.0,0.00046022,30]
[393578702,1762813220702,-902.94,0.00046055,30]
[393578703,1762813220748,-902.94,0.00046055,30]
[393578704,1762813220796,-155.0,0.000461,120]
[393578705,1762813220846,-1000000.0,0.000461,120]
[393578706,1762813220894,-150.0,0.000461,30]
[393578707,1762813220943,-150.0,0.00046119,30]
[393578708,1762813220991,-150.0,0.00046119,30]
[393578709,1762813221039,-150.0,0.00046119,30]
[393578710,1762813221087,-150.0,0.00046126,30]
[393578711,1762813221133,-150.0,0.00046133,30]
[393578712,1762813221181,-150.0,0.0004614,30]
[393578713,1762813221225,-150.0,0.0004614,30]
[393578714,1762813221271,-163.8,0.00046196,120]
[393578715,1762813221318,-153.0,0.000462,120]
[393578716,1762813221365,-1000000.0,0.000462,120]
[393578717,1762813221411,-150.0,0.00046209,120]
[393578718,1762813221457,-150.0,0.00046225,30]
[393578719,1762813221503,-150.0,0.00046234,30]
[393578720,1762813221550,-150.0,0.00046244,30]
[393578721,1762813221596,-1000000.0,0.0004625,120]
[393578722,1762813221640,-150.0,0.00046264,30]
[393578723,1762813221685,-150.0,0.00046278,30]
[393578724,1762813221732,-150.0,0.00046278,30]
[393578725,1762813221780,-960604.13965441,0.000463,120]
[393578726,1762813225456,-39395.86034559,0.000463,120]
[393578727,1762813225503,-150.0,0.0004631,30]
[393578728,1762813225552,-150.0,0.0004631,30]
[393578729,1762813225601,-902.94,0.00046329,30]
[393578730,1762813225648,-902.94,0.00046329,30]
[393578731,1762813225695,-150.0,0.00046342,30]
[393578732,1762813225744,-150.0,0.00046354,30]
[393578733,1762813225792,-150.0,0.000464,30]
[393578734,1762813225841,-259.03072808,0.000464,120]
[393578735,1762813225890,-1000000.0,0.000464,120]
[393578736,1762813225937,-150.0,0.00046437,30]
[393578737,1762813225985,-150.0,0.00046437,30]
[393578738,1762813226034,-150.0,0.00046437,30]
[393578739,1762813226083,-150.0,0.00046437,30]
[393578740,1762813226132,-150.0,0.00046451,30]
[393578741,1762813226179,-150.0,0.00046465,30]
[393578742,1762813226227,-1444.0,0.00046466,120]
[393578743,1762813226275,-150.0,0.0004648,30]
[393578744,1762813226323,-150.0,0.0004648,30]
[393578745,1762813226373,-500000.0,0.000465,120]
[393578746,1762813226422,-500000.0,0.000465,120]
[393578747,1762813226470,-1000000.0,0.000465,120]
[393578748,1762813226518,-150.0,0.00046528,30]
[393578749,1762813226564,-150.0,0.00046559,30]
[393578750,1762813226612,-150.0,0.00046575,30]
[393578751,1762813226661,-150.0,0.00046596,30]
[393578752,1762813226707,-150.0,0.00046596,30]
[393578753,1762813226758,-1000000.0,0.000466,120]
[393578754,1762813226808,-954395.22892633,0.000466,120]
[393578755,1762813229258,-45604.77107367,0.000466,120]
[393578756,1762813229310,-902.94,0.00046603,30]
[393578757,1762813229357,-902.94,0.00046603,30]
[393578758,1762813229405,-500.0,0.00046644,60]
[393578759,1762813229451,-500.0,0.00046644,60]
[393578760,1762813229497,-150.0,0.00046649,30]
[393578761,1762813229542,-150.0,0.00046649,30]
[393578762,1762813229591,-150.0,0.00046649,30]
[393578763,1762813229637,-150.0,0.00046667,30]
[393578764,1762813229682,-150.0,0.00046686,30]
[393578765,1762813229725,-150.0,0.00046699,30]
[393578766,1762813229771,-1000000.0,0.000467,120]
[393578767,1762813229818,-150.0,0.00046726,30]
[393578768,1762813229865,-150.0,0.00046755,30]
[393578769,1762813229917,-150.0,0.00046755,30]
[393578770,1762813229966,-150.0,0.00046755,30]
[393578771,1762813230014,-150.0,0.00046775,30]
[393578772,1762813230062,-150.0,0.00046797,30]
[393578773,1762813230110,-530.71143969,0.000468,120]
[393578774,1762813230165,-1000000.0,0.000468,120]
[393578775,1762813230219,-150.0,0.00046819,30]
[393578776,1762813230271,-150.0,0.00046819,30]
[393578777,1762813230326,-902.94,0.00046877,30]
[393578778,1762813230375,-902.94,0.00046877,30]
[393578779,1762813230429,-150.0,0.00046884,30]
[393578780,1762813230475,-1336.4,0.00046891,120]
[393578781,1762813230523,-1233.90868382,0.000469,120]
[393578782,1762813230568,-153.0,0.000469,120]
[393578783,1762813230613,-5000.0,0.000469,120]
[393578784,1762813230657,-150.0,0.00046907,30]
[393578785,1762813230701,-150.0,0.00046914,30]
[393578786,1762813230746,-150.0,0.00046914,30]
[393578787,1762813230793,-211.0,0.0004698,30]
[393578788,1762813230839,-445.0,0.00046986,120]
[393578789,1762813230885,-150.0,0.00046988,30]
[393578790,1762813230932,-150.0,0.00046988,30]
[393578791,1762813230979,-150.0,0.00046992,30]
[393578792,1762813231029,-150.0,0.00046998,30]
[393578793,1762813231076,-200.0,0.00046999,120]
[393578794,1762813231130,-500000.0,0.00047,120]
[393578795,1762813231179,-1000000.0,0.00047,120]
[393578796,1762813231225,-7639.0,0.00047,120]
[393578797,1762813231272,-1000000.0,0.00047,120]
[393578798,1762813231316,-324.13000964,0.00047,120]
[393578799,1762813231360,-2452.83095906,0.00047,120]
[393578800,1762813231406,-771.62,0.00047,30]
[393578801,1762813231449,-150.0,0.00047018,30]
[393578802,1762813231492,-150.0,0.00047073,30]
[393578803,1762813231539,-150.0,0.00047073,30]
[393578804,1762813231581,-150.0,0.00047073,30]
[393578805,1762813231623,-150.0,0.00047073,30]
[393578806,1762813231665,-150.0,0.00047073,30]
[393578807,1762813231707,-150.0,0.00047073,30]
[393578808,1762813231750,-155.0,0.000471,120]
[393578809,1762813231796,-424980.86783412,0.000471,120]
[393578810,1762813234483,-1301.97,0.000385,30]
[393578811,1762813234537,-151.0,0.00039583,120]
[393578812,1762813234587,-151.0,0.00039583,120]
[393578813,1762813234665,-1301.97,0.000404,30]
[393578814,1762813234713,-1301.97,0.000426,30]
[393578815,1762813234763,-575019.13216588,0.000471,120]
[393578816,1762813234812,-150.0,0.000471,30]
[393578817,1762813234859,-150.0,0.00047129,30]
[393578818,1762813234906,-902.94,0.00047151,30]
[393578819,1762813234954,-902.94,0.00047151,30]
[393578820,1762813235002,-150.0,0.00047158,30]
[393578821,1762813235049,-150.0,0.00047158,30]
[393578822,1762813235096,-150.0,0.00047189,30]
[393578823,1762813235142,-5000.0,0.000472,120]
[393578824,1762813235192,-1000000.0,0.000472,120]
[393578825,1762813235242,-1000000.0,0.000472,120]
[393578826,1762813235288,-150.0,0.00047209,30]
[393578827,1762813235333,-150.0,0.00047232,30]
[393578828,1762813235378,-150.0,0.00047232,30]
[393578829,1762813235423,-150.0,0.00047239,30]
[393578830,1762813235467,-150.0,0.00047255,30]
[393578831,1762813235511,-150.0,0.00047298,30]
[393578832,1762813235555,-204.90702621,0.00047308,120]
[393578833,1762813235601,-150.0,0.00047317,30]
[393578834,1762813235645,-150.0,0.00047328,30]
[393578835,1762813235689,-150.0,0.00047328,30]
[393578836,1762813235734,-150.0,0.0004735,30]
[393578837,1762813235782,-150.0,0.00047391,30]
[393578838,1762813235828,-150.0,0.00047391,30]
[393578839,1762813235875,-150.0,0.00047391,30]
[393578840,1762813235922,-150.0,0.00047425,30]
[393578841,1762813235970,-150.0,0.0004746,30]
[393578842,1762813236016,-150.0,0.00047497,30]
[393578843,1762813236063,-150.0,0.00047497,30]
[393578844,1762813236109,-150.0,0.00047497,30]
[393578845,1762813236157,-250.0,0.00047499,120]
[393578846,1762813236204,-250.0,0.00047499,120]
[393578847,1762813236250,-250.0,0.00047499,120]
[393578848,1762813236296,-151.0,0.00047499,120]
[393578849,1762813236350,-250.0,0.00047499,120]
[393578850,1762813236401,-151.0,0.00047499,120]
[393578851,1762813236447,-500.0,0.000475,120]
[393578852,1762813236497,-500000.0,0.000475,120]
[393578853,1762813236547,-500000.0,0.000475,120]
[393578854,1762813236597,-1000000.0,0.000475,120]
[393578855,1762813236643,-150.0,0.00047533,30]
[393578856,1762813236689,-150.0,0.0004755,30]
[393578857,1762813236735,-150.0,0.0004755,30]
[393578858,1762813236781,-150.0,0.00047571,30]
[393578859,1762813236825,-1336.4,0.00047587,120]
[393578860,1762813236873,-150.0,0.00047597,30]
[393578861,1762813236920,-150.0,0.00047642,30]
[393578862,1762813236969,-150.0,0.00047652,30]
[393578863,1762813237019,-150.0,0.00047667,30]
[393578864,1762813237069,-150.0,0.00047667,30]
[393578865,1762813237120,-150.0,0.00047682,30]
[393578866,1762813237171,-1000.0,0.00047685,120]
[393578867,1762813237217,-1000.0,0.00047685,120]
[393578868,1762813237265,-1000.0,0.00047685,120]
[393578869,1762813237313,-1000.0,0.00047685,120]
[393578870,1762813237360,-1000.0,0.00047685,120]
[393578871,1762813237406,-1063.97,0.00047685,120]
[393578872,1762813237452,-153.0,0.000477,120]
[393578873,1762813237499,-150.0,0.00047709,30]
[393578874,1762813237550,-150.0,0.00047709,30]
[393578875,1762813237602,-150.0,0.00047709,30]
[393578876,1762813237649,-150.0,0.00047709,30]
[393578877,1762813237696,-624.54694188,0.0004774,60]
[393578878,1762813237746,-150.0,0.0004775,30]
[393578879,1762813237797,-398082.25386603,0.0004775,120]
[393578880,1762813241636,-500.0,0.00044634,60]
[393578881,1762813241686,-252.41941323,0.0004573,60]
[393578882,1762813241734,-1301.97,0.000462,30]
[393578883,1762813241781,-305.72929209,0.00046641,120]
[393578884,1762813241826,-244.24,0.00046641,120]
[393578885,1762813241870,-383.16722243,0.00046641,120]
[393578886,1762813241918,-601917.74613397,0.0004775,120]
[393578887,1762813241965,-150.0,0.00047792,30]
[393578888,1762813242012,-150.0,0.00047837,30]
[393578889,1762813242058,-150.0,0.00047837,30]
[393578890,1762813242106,-150.0,0.00047854,120]
[393578891,1762813242154,-150.0,0.00047858,30]
[393578892,1762813242201,-150.0,0.00047868,30]
[393578893,1762813242248,-150.0,0.00047868,30]
[393578894,1762813242294,-1584.91125909,0.0004788,100]
[393578895,1762813242339,-2875.08696264,0.0004789,120]
[393578896,1762813242385,-150.0,0.00047896,30]
[393578897,1762813242433,-150.0,0.00047903,30]
[393578898,1762813242648,-150.0,0.00047921,30]
[393578899,1762813242697,-150.0,0.00047967,30]
[393578900,1762813242746,-150.0,0.00047982,30]
[393578901,1762813242791,-1000.0,0.00047999,120]
[393578902,1762813242835,-200.0,0.00047999,120]
[393578903,1762813242880,-3695.48669626,0.00048,120]
[393578904,1762813242925,-1700.11493944,0.00048,120]
[393578905,1762813242971,-1000.0,0.00048,120]
[393578906,1762813243016,-27605.4554378,0.00048,120]
[393578907,1762813243061,-229.15190603,0.00048,120]
[393578908,1762813243106,-2991.80393878,0.00048,120]
[393578909,1762813243152,-483.69933236,0.00048,120]
[393578910,1762813243200,-200.0,0.00048,120]
[393578911,1762813243246,-500.0,0.00048,120]
[393578912,1762813243297,-1000000.0,0.00048,120]
[393578913,1762813243343,-10000.0,0.00048,120]
[393578914,1762813243392,-52552.49,0.00048,120]
[393578915,1762813243438,-200.2,0.00048,120]
[393578916,1762813243484,-5012.1055376,0.00048,120]
[393578917,1762813243532,-150.0,0.00048,60]
[393578918,1762813243575,-2657.14378134,0.00048,120]
[393578919,1762813243619,-1142.67257679,0.00048,120]
[393578920,1762813243663,-420.0,0.00048,120]
[393578921,1762813243707,-2185.20067719,0.00048,120]
[393578922,1762813243755,-150.0,0.00048,120]
[393578923,1762813243798,-150.0,0.00048,120]
[393578924,1762813243841,-150.0,0.00048,120]
[393578925,1762813243883,-300.0,0.00048,120]
[393578926,1762813243929,-150.0,0.00048006,30]
[393578927,1762813243976,-150.0,0.00048006,30]
[393578928,1762813244025,-150.0,0.00048014,30]
[393578929,1762813244073,-150.0,0.00048027,30]
[393578930,1762813244122,-150.0,0.00048027,30]
[393578931,1762813244170,-150.0,0.00048027,30]
[393578932,1762813244218,-150.0,0.00048075,30]
[393578933,1762813244266,-155.0,0.000481,120]
[393578934,1762813244314,-150.0,0.00048114,30]
[393578935,1762813244361,-150.0,0.00048124,30]
[393578936,1762813244408,-150.0,0.00048176,30]
[393578937,1762813244455,-150.0,0.00048176,30]
[393578938,1762813244505,-150.0,0.00048183,30]
[393578939,1762813244553,-150.0,0.00048186,30]
[393578940,1762813244605,-150.0,0.00048186,30]
[393578941,1762813244652,-150.0,0.00048196,30]
[393578942,1762813244699,-5000.0,0.000482,120]
[393578943,1762813244748,-1000000.0,0.000482,120]
[393578944,1762813244799,-1000000.0,0.000482,120]
[393578945,1762813244847,-150.0,0.00048235,30]
[393578946,1762813244896,-1336.4,0.00048282,120]
[393578947,1762813244946,-150.0,0.00048291,30]
[393578948,1762813244994,-150.0,0.00048346,30]
[393578949,1762813245044,-150.0,0.00048346,30]
[393578950,1762813245093,-150.0,0.00048346,30]
[393578951,1762813245138,-150.0,0.00048346,30]
[393578952,1762813245184,-150.0,0.00048346,30]
[393578953,1762813245229,-150.0,0.00048346,30]
[393578954,1762813245273,-150.0,0.00048346,30]
[393578955,1762813245316,-150.0,0.00048346,30]
[393578956,1762813245360,-150.0,0.00048346,30]
[393578957,1762813245404,-150.0,0.00048346,30]
[393578958,1762813245448,-150.0,0.000484,30]
[393578959,1762813245492,-153.0,0.000484,120]
[393578960,1762813245541,-10081.08238202,0.000484,120]
[393578961,1762813245588,-150.0,0.00048456,30]
[393578962,1762813245637,-150.0,0.00048495,30]
[393578963,1762813245683,-150.0,0.00048505,30]
[393578964,1762813245729,-150.0,0.00048505,30]
[393578965,1762813245778,-150.0,0.00048508,30]
[393578966,1762813245826,-150.0,0.00048515,30]
[393578967,1762813245874,-150.0,0.00048515,30]
[393578968,1762813245922,-150.0,0.00048567,30]
[393578969,1762813245969,-150.0,0.00048577,30]
[393578970,1762813246015,-49000.0,0.000486,30]
[393578971,1762813246067,-150.0,0.00048616,30]
[393578972,1762813246114,-150.0,0.00048664,30]
[393578973,1762813246161,-150.0,0.00048664,30]
[393578974,1762813246208,-150.0,0.00048664,30]
[393578975,1762813246255,-150.0,0.00048677,30]
[393578976,1762813246301,-150.0,0.00048685,30]
[393578977,1762813246346,-150.0,0.00048685,30]
[393578978,1762813246392,-150.0,0.00048709,30]
[393578979,1762813246437,-150.0,0.00048724,30]
[393578980,1762813246481,-150.0,0.0004877,30]
[393578981,1762813246527,-150.0,0.00048788,30]
[393578982,1762813246571,-150.0,0.00048795,30]
[393578983,1762813246615,-293.28961346,0.000488,120]
[393578984,1762813246659,-450.0,0.000488,120]
[393578985,1762813246702,-450.0,0.000488,120]
[393578986,1762813246746,-450.0,0.000488,120]
[393578987,1762813246793,-450.0,0.000488,120]
[393578988,1762813246838,-450.0,0.000488,120]
[393578989,1762813246884,-450.0,0.000488,120]
[393578990,1762813246931,-450.0,0.000488,120]
[393578991,1762813246978,-450.0,0.000488,120]
[393578992,1762813247025,-150.0,0.00048823,30]
[393578993,1762813247073,-150.0,0.00048823,30]
[393578994,1762813247119,-150.0,0.00048833,30]
[393578995,1762813247166,-150.0,0.00048854,30]
[393578996,1762813247212,-150.0,0.00048854,30]
[393578997,1762813247256,-5064.14238,0.00048854,30]
[393578998,1762813247302,-150.0,0.00048865,120]
[393578999,1762813247348,-150.0,0.00048899,30]
[393579000,1762813247394,-361.7527718,0.000489,120]
[393579001,1762813247441,-5000.0,0.000489,120]
[393579002,1762813247487,-150.0,0.00048941,30]
[393579003,1762813247661,-150.0,0.00048982,30]
[393579004,1762813247708,-150.0,0.00048982,30]
[393579005,1762813247755,-150.0,0.00048982,30]
[393579006,1762813247802,-150.0,0.00048982,30]
[393579007,1762813247849,-448.59560638,0.00048986,120]
[393579008,1762813247896,-211.0,0.0004899,30]
[393579009,1762813247943,-200.0,0.00048999,120]
[393579010,1762813247992,-497.93958572,0.00049,120]
[393579011,1762813248041,-1825.76943967,0.00049,120]
[393579012,1762813248090,-512.54526496,0.00049,120]
[393579013,1762813248141,-172.53732688,0.00049,120]
[393579014,1762813248190,-997.21368004,0.00049,120]
[393579015,1762813248239,-10000.0,0.00049,120]
[393579016,1762813248291,-8281.1244474,0.00049,120]
[393579017,1762813248340,-7639.0,0.00049,120]
[393579018,1762813248388,-677.1018051,0.00049,90]
[393579019,1762813248436,-1000000.0,0.00049,120]
[393579020,1762813248484,-100000.0,0.00049,120]
[393579021,1762813248531,-3420.78549644,0.00049,30]
[393579022,1762813248577,-9004.98079084,0.00049,30]
[393579023,1762813248624,-3000.0,0.00049,120]
[393579024,1762813248676,-38075.94430225,0.00049,30]
[393579025,1762813274919,-700.0,0.0004795,120]
[393579026,1762813274967,-255.18676718,0.0004875,120]
[393579027,1762813275015,-250.0,0.00048999,120]
[393579028,1762813275062,-250.0,0.00048999,120]
[393579029,1762813275107,-172.90598175,0.00048999,120]
[393579030,1762813275153,-250.0,0.00048999,120]
[393579031,1762813275199,-250.0,0.00048999,120]
[393579032,1762813275251,-250.0,0.00048999,120]
[393579033,1762813275303,-250.0,0.00048999,120]
[393579034,1762813275351,-250.0,0.00048999,120]
[393579035,1762813275397,-250.0,0.00048999,120]
[393579036,1762813275444,-250.0,0.00048999,120]
[393579037,1762813275491,-151.0,0.00048999,120]
[393579038,1762813275538,-281.26283905,0.00048999,120]
[393579039,1762813275583,-250.0,0.00048999,120]
[393579040,1762813275628,-151.0,0.00048999,120]
[393579041,1762813275673,-250.0,0.00048999,120]
[393579042,1762813275718,-151.0,0.00048999,120]
[393579043,1762813275767,-151.0,0.00048999,120]
[393579044,1762813275820,-151.0,0.00048999,120]
[393579045,1762813275868,-250.0,0.00048999,120]
[393579046,1762813275916,-151.0,0.00048999,120]
[393579047,1762813275963,-151.0,0.00048999,120]
[393579048,1762813276011,-250.0,0.00048999,120]
[393579049,1762813276060,-151.0,0.00048999,120]
[393579050,1762813276108,-689.71896102,0.00048999,90]
[393579051,1762813276156,-151.0,0.00048999,120]
[393579052,1762813276355,-250.0,0.00048999,120]
[393579053,1762813276404,-151.0,0.00048999,120]
[393579054,1762813276451,-250.0,0.00048999,120]
[393579055,1762813276499,-151.0,0.00048999,120]
[393579056,1762813276545,-151.0,0.00048999,120]
[393579057,1762813276594,-250.0,0.00048999,120]
[393579058,1762813276643,-151.0,0.00048999,120]
[393579059,1762813276689,-151.0,0.00048999,120]
[393579060,1762813276736,-250.0,0.00048999,120]
[393579061,1762813276782,-151.0,0.00048999,120]
[393579062,1762813276829,-250.0,0.00048999,120]
[393579063,1762813276876,-151.0,0.00048999,120]
[393579064,1762813276925,-18211.32338157,0.00049,30]
[393579065,1762813276975,-35734.31007212,0.00049,120]
[393579066,1762813277022,-53263.11707131,0.00049,30]
[393579067,1762813277071,-682.81730511,0.00049,30]
[393579068,1762813277118,-825.20478151,0.00049,30]
[393579069,1762813277166,-5142.0,0.00049,30]
[393579070,1762813277214,-1417.03833,0.00049,44]
[393579071,1762813277261,-1417.03832,0.00049,44]
[393579072,1762813277304,-1417.03832,0.00049,44]
[393579073,1762813277348,-1417.03833,0.00049,44]
[393579074,1762813277394,-1417.03833,0.00049,44]
[393579075,1762813277440,-1417.03832,0.00049,44]
[393579076,1762813277486,-150.0,0.00049009,30]
[393579077,1762813277532,-150.0,0.00049024,30]
[393579078,1762813277581,-150.0,0.00049024,30]
[393579079,1762813277628,-150.0,0.00049035,120]
[393579080,1762813277674,-150.0,0.00049039,30]
[393579081,1762813277720,-150.0,0.00049049,30]
[393579082,1762813277766,-150.0,0.00049094,30]
[393579083,1762813277812,-153.0,0.000491,120]
[393579084,1762813277862,-150.0,0.0004912,30]
[393579085,1762813277911,-150.0,0.00049141,30]
[393579086,1762813277960,-150.0,0.00049141,30]
[393579087,1762813278008,-150.0,0.00049158,30]
[393579088,1762813278056,-150.0,0.00049194,30]
[393579089,1762813278103,-150.0,0.00049194,30]
[393579090,1762813278150,-150.0,0.00049194,30]
[393579091,1762813278197,-155.0,0.000492,120]
[393579092,1762813278243,-3206.98872067,0.000492,120]
[393579093,1762813278292,-1000000.0,0.000492,120]
[393579094,1762813278339,-150.0,0.00049231,30]
[393579095,1762813278387,-1104.71,0.00049257,120]
[393579096,1762813278433,-150.0,0.00049266,30]
[393579097,1762813278479,-150.0,0.000493,30]
[393579098,1762813278526,-150.0,0.000493,30]
[393579099,1762813278574,-150.0,0.000493,30]
[393579100,1762813278622,-678.29496556,0.000493,120]
[393579101,1762813278667,-400.0,0.000493,120]
[393579102,1762813278712,-457.64,0.000493,120]
[393579103,1762813278759,-266.18327016,0.000493,120]
[393579104,1762813278807,-1185.63,0.00049315,120]
[393579105,1762813278853,-1185.63,0.00049315,120]
[393579106,1762813278899,-1185.63,0.00049315,120]
[393579107,1762813278944,-1185.63,0.00049315,120]
[393579108,1762813278989,-1185.63,0.00049315,120]
[393579109,1762813279035,-1185.63,0.00049315,120]
[393579110,1762813279082,-1185.63,0.00049315,120]
[393579111,1762813279129,-1185.63,0.00049315,120]
[393579112,1762813279176,-1185.63,0.00049315,120]
[393579113,1762813279222,-1185.63,0.00049315,120]
[393579114,1762813279267,-1185.63,0.00049315,120]
[393579115,1762813279311,-1185.63,0.00049315,120]
[393579116,1762813279354,-1185.63,0.00049315,120]
[393579117,1762813279398,-1185.63,0.00049315,120]
[393579118,1762813279442,-1185.63,0.00049315,120]
[393579119,1762813279487,-1185.63,0.00049315,120]
[393579120,1762813279531,-1185.63,0.00049315,120]
[393579121,1762813279576,-1185.63,0.00049315,120]
[393579122,1762813279620,-1185.63,0.00049315,120]
[393579123,1762813279663,-1185.63,0.00049315,120]
[393579124,1762813279706,-1185.63,0.00049315,120]
[393579125,1762813279748,-1185.63,0.00049315,120]
[393579126,1762813279793,-1185.63,0.00049315,120]
[393579127,1762813279836,-1185.79533844,0.00049315,120]
[393579128,1762813279880,-428.18130717,0.00049315,120]
[393579129,1762813279926,-1000.0,0.00049315,120]
[393579130,1762813279972,-1000.0,0.00049315,120]
[393579131,1762813280020,-1000.0,0.00049315,120]
[393579132,1762813280068,-1000.0,0.00049315,120]
[393579133,1762813280116,-1000.0,0.00049315,120]
[393579134,1762813280162,-1000.0,0.00049315,120]
[393579135,1762813280217,-1000.0,0.00049315,120]
[393579136,1762813280267,-1000.0,0.00049315,120]
[393579137,1762813280312,-493.47,0.00049315,120]
[393579138,1762813280359,-10000.0,0.00049315,120]
[393579139,1762813280405,-302.52184824,0.00049315,120]
[393579140,1762813280451,-600.0,0.00049315,36]
[393579141,1762813280498,-150.0,0.00049341,30]
[393579142,1762813280544,-150.0,0.00049363,30]
[393579143,1762813280590,-150.0,0.00049363,30]
[393579144,1762813280635,-150.0,0.00049374,30]
[393579145,1762813280682,-150.0,0.00049393,30]
[393579146,1762813280727,-150.0,0.00049436,30]
[393579147,1762813280774,-259414.9837,0.00049444,30]
[393579148,1762813280823,-150.0,0.00049452,30]
[393579149,1762813280875,-150.0,0.00049459,30]
[393579150,1762813280923,-150.0,0.00049459,30]
[393579151,1762813280980,-150.0,0.00049482,30]
[393579152,1762813281033,-1861.50987954,0.000495,120]
[393579153,1762813281090,-500000.0,0.000495,120]
[393579154,1762813281343,-150.0,0.00049502,30]
[393579155,1762813281399,-150.0,0.00049533,30]
[393579156,1762813281450,-150.0,0.00049533,30]
[393579157,1762813281500,-150.0,0.00049562,30]
[393579158,1762813281548,-150.0,0.00049591,30]